Cogmind - Beta 13 @@@ ROGUE MODE // 2024.04.02 @ 10:48:24 Player: TheLargestBoi Result: Self-destructed Performance ------------- Evolutions (1) 500 Regions Visited (2) 400 Robots Destroyed (44) 220 Value Destroyed (1168) 1168 Prototype IDs (0) 0 Alien Tech Used (0) 0 Bonus (47) 47 TOTAL SCORE: 2335 Bonus ------- High Alert Combat Kills 47 Cogmind --------- Core Integrity 318/400 Matter 283/300 Energy 100/100 System Corruption 0% Temperature Warm (135) Movement Walking (120) Location -9/Materials Parts ------- > --- POWER (1) -------- (None) > --- PROPULSION (3) --- Aluminum Leg Aluminum Leg Aluminum Leg > --- UTILITY (3) ------ Medium Storage Unit Machine Analyzer Improved Targeting Computer > --- WEAPON (2) ------- Particle Gun Light Cannon > --- INVENTORY (10) --- Improved Ion Engine Aluminum Leg Visual Processing Unit Improved Targeting Computer Hardened Light Armor Plating Recalibrator Rocket Launcher Rocket Launcher Mining Laser Peak State ------------ > --- POWER ------------ Improved Ion Engine > --- PROPULSION ------- Aluminum Leg Aluminum Leg Aluminum Leg > --- UTILITY ---------- Medium Storage Unit Machine Analyzer Improved Targeting Computer > --- WEAPON ----------- Light Cannon Light Cannon > --- INVENTORY -------- Improved Ion Engine Aluminum Leg Visual Processing Unit Improved Targeting Computer Hardened Light Armor Plating Recalibrator Particle Gun Rocket Launcher Rocket Launcher Mining Laser [Rating: 15] Favorites ----------- Power Ion Engine Engine Ion Engine Propulsion Aluminum Leg Leg Aluminum Leg Utility Machine Analyzer Device Seismic Detector Storage Small Storage Unit Processor Machine Analyzer Weapon Light Cannon Energy Gun Particle Gun Ballistic Gun Assault Rifle Ballistic Cannon Light Cannon Launcher Grenade Launcher Special Weapon Mining Laser Build | -11 -10 -9 ------- Run | Yrd Mat Mat Slots Evolved 2 | . . 2 Power . | . . . Propulsion 1 | . . 1 Utility 1 | . . 1 Weapon . | . . . Parts Attached 31 | 7 13 11 Power 3 | 1 1 1 Engine 3 | 1 1 1 Core . | . . . Reactor . | . . . Propulsion 8 | 2 2 4 Treads . | . . . Leg 8 | 2 2 4 Wheel . | . . . Hover . | . . . Flight . | . . . Utility 5 | 2 2 1 Device 1 | 1 . . Storage 2 | 1 1 . Processor 2 | . 1 1 Hackware . | . . . Protection . | . . . Artifact . | . . . Weapon 15 | 2 8 5 Energy Gun 1 | . . 1 Energy Cannon . | . . . Ballistic Gun 3 | 2 1 . Ballistic Cannon 6 | . 4 2 Launcher 3 | . 1 2 Special Weapon 2 | . 2 . Impact Weapon . | . . . Slashing Weapon . | . . . Piercing Weapon . | . . . Special Melee Weapon . | . . . Unidentified Prototypes . | . . . Parts Lost 2 | . . 2 Power 1 | . . 1 Propulsion . | . . . Utility . | . . . Weapon 1 | . . 1 Highest Loss Streak 2 | . . 2 To Critical Strikes . | . . . Average Slot Usage (%) 100 | . 100 100 Engine 13 | . 14 11 Leg 29 | . 28 33 Device 1 | . 1 . Storage 13 | . 14 11 Processor 15 | . 12 22 Ballistic Gun 4 | . 5 . Ballistic Cannon 19 | . 19 21 Special Weapon 2 | . 2 . Naked Turns . | . . . Heaviest Build 23 | 15 21 23 Greatest Support 30 | 20 20 30 Greatest Overweight (x) 3 | 3 1 . Average Overweight (x) . | . . . Largest Inventory Capacity 10 | 8 10 10 Average Capacity 8 | 7 8 10 Most Carried 10 | 2 10 10 Average Carried 7 | 1 7 9 Final Capacity 10 | 8 10 10 Final Carried 10 | 2 10 9 Class Distribution -------------------- 100% | Mutant Dominant Class ---------------- Mutant | -10/Materials Mutant | -9/Materials Resources | -11 -10 -9 ----------- Run | Yrd Mat Mat Matter Collected 1142 | 292 391 459 Remotely . | . . . Salvage Created 1159 | 62 505 592 Parts 73 | 8 25 40 Haulers Intercepted . | . . . Recyclers Shooed 1 | . . 1 Parts Field Recycled . | . . . Retrieved Matter . | . . . Parts Self-Destructed . | . . . Prevented . | . . . Kills | -11 -10 -9 ------- Run | Yrd Mat Mat Combat Hostiles Destroyed 30 | . 9 21 Guns 3 | . 3 . Cannons 22 | . 6 16 AOE 5 | . . 5 Classes Destroyed 11 | 1 5 5 Worker 1 | . . 1 Builder 2 | . 1 1 Tunneler 4 | 3 . 1 Recycler 2 | . 2 . Mechanic 1 | . 1 . Operator 3 | . 2 1 Watcher 1 | . . 1 Swarmer 6 | . . 6 Grunt 20 | . 9 11 Brawler 1 | . . 1 Sentry 3 | . . 3 Best Kill Streak 5 | 3 4 5 Combat Bots Only 4 | . 3 4 Max Kills in Single Turn 4 | 1 2 4 Gunslinging 1 | . 1 . Exploded 3 | . . 3 Melee . | . . . Uniques/NPCs Destroyed . | . . . Combat | -11 -10 -9 -------- Run | Yrd Mat Mat Hostile Shots Fired 91 | . 43 48 Missed 22 | . 11 11 Damage Taken 961 | . 478 483 Core 166 | . 84 82 Absorbed by Shields . | . . . Core Remaining (%) 83 | 100 66 . Volleys Fired 102 | 5 51 46 Largest 2 | 2 2 2 Hottest 100 | 40 100 100 Shots Fired 191 | 9 91 91 Gun 37 | 9 23 5 Cannon 140 | . 57 83 Launcher 4 | . 1 3 Special 10 | . 10 . Kinetic 172 | 9 80 83 Thermal 15 | . 10 5 Explosive 4 | . 1 3 Electromagnetic . | . . . Robot Hit Streak 8 | 8 6 8 Robot Miss Streak 7 | . 7 2 Penetration Max . | . . . Secondary Targets 2 | . 2 . Max Gunslinging Chain 1 | . 1 . Shots Hit Robots 106 | 8 37 61 Core Hits 56 | 3 21 32 Critical Kills . | . . . Critical Parts Destroyed . | . . . Critical Strikes 3 | . 2 1 Blast 3 | . 2 1 Melee Attacks . | . . . Impact . | . . . Slashing . | . . . Piercing . | . . . Sneak Attacks . | . . . Combat Hostiles . | . . . Follow-up Attacks . | . . . Damage Inflicted 2713 | 105 1077 1531 Guns 282 | 93 143 46 Cannons 1555 | . 467 1088 Explosions 817 | . 441 376 Melee . | . . . Ramming 59 | 12 26 21 Kinetic 1791 | 93 610 1088 Thermal 445 | . 399 46 Explosive 418 | . 42 376 Electromagnetic . | . . . Impact . | . . . Slashing . | . . . Piercing . | . . . Highest Corruption . | . . . Average Corruption . | . . . Corruption Purged . | . . . Corruption Blocked . | . . . Overload Shots . | . . . Overflow Damage 141 | . 120 21 Projectiles 31 | . 10 21 Explosions 110 | . 110 . Melee . | . . . Knockbacks 15 | . 6 9 Impact . | . . . Kinetic 14 | . 6 8 Secondary 1 | . . 1 Self-Inflicted Damage 69 | . 16 53 Shots 3 | . 1 2 Rammed . | . . . Targets Rammed 11 | 2 5 4 Kicked 11 | 2 5 4 Crushed . | . . . Highest Temperature 135 | . 90 135 Average Temperature 21 | . 20 23 Received Heat Transfer 444 | . 258 186 Siege Activations . | . . . Robots Corrupted . | . . . Combat Hostiles . | . . . Parts Fried . | . . . Impact Corruptions . | . . . Robots Melted . | . . . Combat Hostiles . | . . . Parts Melted 2 | . 2 . Heat Transferred 361 | . 250 111 Parts Sabotaged . | . . . Parts Stolen . | . . . Parts Stripped . | . . . Power Chain Reactions . | . . . Alert | -11 -10 -9 ------- Run | Yrd Mat Mat Peak Influence 649 | 15 319 649 Initial 82 | . 9 82 Average 179 | 5 146 290 Maximum Alert Level 2 | . 1 2 Low Security (%) 60 | 100 63 47 Level 1 33 | . 36 29 Level 2 6 | . . 22 Level 3 . | . . . Level 4 . | . . . Level 5 . | . . . High Security . | . . . Max Security . | . . . Squads Dispatched 4 | . 2 2 Investigation 2 | . 1 1 Extermination . | . . . Reinforcement 2 | . 1 1 Assault . | . . . Garrison . | . . . Intercept . | . . . Searches Triggered . | . . . Construction Impeded . | . . . Haulers Reinforced . | . . . Active Scanning Responses . | . . . Cargo Convoy Interrupts . | . . . Stealth | -11 -10 -9 --------- Run | Yrd Mat Mat Distress Signals 1 | . . 1 Communications Jammed . | . . . Distress Signals . | . . . Times Spotted 62 | . 36 26 Peak Tracking Total 6 | . 5 6 Tactical Retreats 14 | . 9 5 Traps | -11 -10 -9 ------- Run | Yrd Mat Mat Traps Triggered . | . . . Indirectly . | . . . Trap Hack Attempts . | . . . Triggered . | . . . Disarmed . | . . . Reprogrammed . | . . . Reused . | . . . Traps Extracted . | . . . Installed . | . . . Triggered . | . . . Machines | -11 -10 -9 ---------- Run | Yrd Mat Mat Machines Disabled 9 | . 8 1 Max in Single Turn 3 | . 3 1 Machines Repaired . | . . . Machines Dismantled . | . . . Machines Sabotaged . | . . . Overloaded Fab Kills . | . . . Hacking | -11 -10 -9 --------- Run | Yrd Mat Mat Machines Accessed 14 | . 10 4 Terminals 11 | . 7 4 Fabricators . | . . . Repair Stations 1 | . 1 . Recycling Units 2 | . 2 . Scanalyzers . | . . . Garrison Access . | . . . Total Hacks 40 | . 31 9 Successful 17 | . 14 3 Failed 23 | . 17 6 Catastrophic 5 | . 2 3 Database Lockouts . | . . . Manual 32 | . 27 5 Terminals 32 | . 23 9 Fabricators . | . . . Repair Stations 1 | . 1 . Recycling Units 7 | . 7 . Scanalyzers . | . . . Garrison Access . | . . . Terminal Hacks 7 | . 4 3 Robot Analysis 2 | . 1 1 Branch Access Points 1 | . 1 . Alert Level 1 | . . 1 Locate Traps 2 | . 1 1 Recall Investigation 1 | . 1 . Fabricator Hacks . | . . . Repair Station Hacks . | . . . Recycling Unit Hacks 2 | . 2 . Report Inventory 2 | . 2 . Scanalyzer . | . . . Garrison Access Hacks . | . . . Unauthorized Hacks 8 | . 8 . Terminals 3 | . 3 . Track 1 | . 1 . Botnet 1 | . 1 . Operators 1 | . 1 . Fabricators . | . . . Repair Stations 1 | . 1 . Mechanics 1 | . 1 . Recycling Units 4 | . 4 . Reject 2 | . 2 . Mask 2 | . 2 . Scanalyzers . | . . . Garrison Access . | . . . Data Cores Recovered . | . . . Used . | . . . Hacking Detections 13 | . 9 4 Full Trace Events 4 | . 3 1 Feedback Events . | . . . Feedback Blocked . | . . . Robot Schematics Acquired . | . . . Robots Built . | . . . Authchips . | . . . Time . | . . . Total Robot Build Rating . | . . . Part Schematics Acquired . | . . . Parts Built . | . . . Authchips . | . . . Time . | . . . Total Part Build Rating . | . . . Parts Repaired . | . . . Time . | . . . Parts Recycled . | . . . Recycled Matter . | . . . Retrieved Matter . | . . . Retrieved Components . | . . . Parts Scanalyzed . | . . . Part Schematics Acquired . | . . . Parts Damaged . | . . . Bothacking | -11 -10 -9 ------------ Run | Yrd Mat Mat Used RIF Installer . | . . . Robots Hacked . | . . . Non-combat . | . . . Combat . | . . . Robot Hacks Applied . | . . . Relay Couplers Released . | . . . Fabnet Peak Effective % . | . . . Robots Rewired . | . . . Allies Hacked . | . . . Hacks Repelled . | . . . Allies | -11 -10 -9 -------- Run | Yrd Mat Mat Total Allies . | . . . Largest Group . | . . . Highest-Rated Group . | . . . Highest-Rated Ally . | . . . Total Orders . | . . . Ally Attacks . | . . . Total Damage . | . . . Kills . | . . . Allies Corrupted . | . . . Allies Melted . | . . . Intel | -11 -10 -9 ------- Run | Yrd Mat Mat Robot Analysis Total 2 | . 1 1 Derelict Logs Recovered . | . . . Drone Launches . | . . . Drone Recoveries . | . . . Exploration | -11 -10 -9 ------------- Run | Yrd Mat Mat Turns Passed 2584 | 106 1779 699 Spaces Moved 1418 | 62 948 408 Core 5 | 5 . . Treads . | . . . Legs 1413 | 57 948 408 Wheels . | . . . Hover . | . . . Flight . | . . . Fastest Speed 50 | 50 120 120 Average Speed 127 | 122 130 120 Slowest Speed 200 | 200 190 120 Overloaded Moves . | . . . Propulsion Burnouts . | . . . Robots Hopped . | . . . Cave-ins Triggered . | . . . Exploration Rate (%) 46 | 5 96 38 Regions Visited 2 Branch Regions . Pre-discovered Areas . | . . . Known Exits Taken . | . . . Unknown Exits Taken 2 | 1 1 . Scrap Searched . | . . . Spaces Dug 10 | . 10 . Terrain Destroyed 66 | . 33 33 Melee . | . . . Projectile 10 | . 10 . AOE 56 | . 23 33 Terrain Rammed . | . . . Walls Destroyed . | . . . Machines Disabled . | . . . Actions | -11 -10 -9 --------- Run | Yrd Mat Mat Total 1980 | 79 1374 527 Wait 385 | 1 336 48 Move 1417 | 62 947 408 Hop . | . . . Pick Up 19 | 3 12 4 Fast Attach 8 | 6 2 . Attach 4 | 1 . 3 Detach . | . . . Swap 19 | . 11 8 Drop 16 | . 10 6 Fire 102 | 5 51 46 Melee . | . . . Ram . | . . . Kick 10 | 1 5 4 Crush . | . . . Escape Stasis . | . . . Rewire . | . . . Trap . | . . . Miscellaneous . | . . . Route ------- -11/Scrapyard -10/Materials (discovered 5 exits: *Mat x3 / *Min x2) -9/Materials History --------- Turn | Location | Event 10 | -11/Scrapyard | Discovered new exit (range 16) 107 | -11/Scrapyard | Entered Materials 305 | -10/Materials | Build established: Mutant 945 | -10/Materials | Discovered new exit (range 7) 1042 | -10/Materials | Discovered new exit (range 7) 1042 | -10/Materials | Discovered new exit (range 11) 1336 | -10/Materials | Discovered new exit (range 11) 1616 | -10/Materials | Discovered new exit (range 5) 1677 | -10/Materials | Identified exit to Mines 1886 | -10/Materials | Entered another Materials area 1886 | -9/Materials | Evolved 2 slots: Propulsion x1, Utility x1 2585 | -9/Materials | Self-destructed Last Messages --------------- 02540_ K-01 Serf collects debris. 02542_ Acquired 4 matter. 02543_ K-01 Serf collects debris. 02553_ Knocked back. 02554_ K-01 Serf collects debris. 02558_ B-36 Bruiser destroyed. 02559_ K-01 Serf collects debris. 02563_ Lgt. Cannon destroyed. 02564_ G-34 Mercenary knocked back. 02565_ K-01 Serf collects debris. 02570_ G-34 Mercenary knocked back. 02573_ G-34 Mercenary destroyed. 02573_ K-01 Serf collects debris. 02576_ Acquired 45 matter. 02577_ Kicked K-01 Serf out of the way. 02578_ Acquired 6 matter. 02579_ K-01 Serf destroyed. 02582_ G-34 Mercenary destroyed. 02583_ K-01 Serf collects debris. 02584_ Imp. Ion Engine destroyed. Map ----- +----------------------------------------------------+ | ??????????????????????????????????????????????? | | ??????????????????????????????????????????????? | | ??????????????????????????????????????????????? | | ???????????????"""????????????????????????????? | | ???????????????"R?????????????????????????????? | | ???????????????"""????????????????????????????? | | ??????????? ??????????????????????????????????? | | ??????????? ??????????????????????????????????? | | ??????????? ??????????????????????????????????? | | ??????????? ??????????????????????????????????? | | ??????????# #???????????? ??????????????????? | | ?????????? ???????????? ????????????????? | | ?????????? ???????????? ????????????????? | | ""???????? ???????????? ????????????????? | | T"????????# #???????????? """??"""?????????? | | ""????????# #????????????!g """??"""?????????? | | ??????????# #??????"""???!] %"""??"""?????????? | | #??######## #??????"""??#k] ???????????????? | | #??# """ # #??????"""??#g %[ ????????????????? | | #??# "T" # #???????????#% ! ?????????????????? | | #??# " " # #???"S??????# !#???"T"???????????? | | #??# + #???"""?????# *%#?????????????????? | | ???# ! # #????""?????# #?????????????????? | | ???# # #???????????#= #?????????????????? | | ######+#### #?###########%% #?????????????????? | | ## #### #?# %%=!;@% #?????????????????? | | #?# """ [= # % #?????????????????? | | # # ##### #?# "T" % /=# #??"??????????????? | | ### ##???# #?# k! # #?"""?????????????? | | ??####????# #?####/###### #?"""?????????????? | | ??????????# #????# #????# #?"""?????????????? | | # #+###### #????# #?""??????????????? | | +% # ## #????# #?"""?????????????? | | # # ## #????# # ""?????????????? | | #?????????# """ ## ###### + """?????????????? | | #?????????# """ # t #??"??????????????? | | #?????????# """ # ##?????????????????? | | #?????????# + #??????????????????? | | #?????????# % # #??????????????????? | | ??????????####### ???????????????? | | ???????????????? ??????????????? | | ???????????????? ??????????????? | | ??????????????? ####### ??????????????? | | ??????????????? #??????? ???????????????? | | ??????????????? #???????? ???????????????? | | ?????????????? #????????????????????????? | | ?????"???????? #????????????????????????? | | ?????T??"""??""" #?????????^??????????????? | | ?????"??"""??""" #?????????^??????????????? | | ????????"""??""" #????????????????????????? | +----------------------------------------------------+ Best States ------------- Heat Dissipation 28 Energy Generation 12 Energy Capacity 265 Matter Stores 300 Matter Capacity 300 Sight Range 16 Terrain Scan Density 10 Evasion (%) 55 Targeting Accuracy 6 Item Schematics ----------------- None Robot Schematics ------------------ None Fabricated ------------ Nothing Alien Tech Used ----------------- None Achievements -------------- None Challenges ------------ None Game ------ Seed OpticalImpactKit Manual? 0 Play Time 00:21:51 Cumulative 30.4 hours Start 2024.03.28 @ 12:01:18 End 2024.04.02 @ 10:48:24 Sessions 3 Manual Loads 0 Difficulty Rogue Special Mode None Game No. 67 Rogue 67 Adventurer 0 Explorer 0 Win Type - Total 1 Types 1/0/0/0/0/0/0/0/0 Lore% 19 Gallery% 31 Achievement% 32 Wizard Run 0 Options --------- Layout 0 ASCII 0 Keyboard 0 Movement Numpad Keybinds 0 Fullscreen 1 Font 18/SmallcapsGlow Map View 76x50 Zoom Use 0% Tactical HUD 1 Map Filters NONE Filters NONE Steam 1 RUN: 1e2da7e9-998a-497d-873f-73d3853a4906